[Event "IIFL Wealth  4th Mumbai Junior U-13"]
[Site "Mumbai"]
[Date "2018.12.31"]
[Round "2"]
[White "Bajaj Prakhar"]
[Black "Darsh Shetty"]
[Result "1-0"]
[ECO "A46"]
[WhiteElo "1551"]
[BlackElo "1260"]
[Annotator "NA"]
[PlyCount "129"]
[EventDate "2018.12.30"]
[EventType "swiss"]
[EventCountry "IND"]
[SourceTitle "playchess.com"]
[Source "ChessBase"]
[SourceQuality "1"]
[TimeControl "40/5400+30:1800+30"]

1. d4 {[%emt 0:00:00]} Nf6 {[%emt 0:00:10]} 2. Nf3 {[%emt 0:00:00]} e6 {[%emt 0:00:47]} 3. Bf4 {[%emt 0:00:18]} d6 {[%emt 0:00:39]} 4. c4 {[%emt 0:03:16]} b6 {[%emt 0:00:29]} 5. Nc3 {[%emt 0:00:17]} Bb7 {[%emt 0:00:10]} 6. Qc2 {[%emt 0:02:13]} Nbd7 {[%emt 0:00:23]} 7. e4 {[%emt 0:01:15]} g6 8. Bd3 {[%emt 0:01:54]} Bg7 {[%emt 0:08:39]} 9. O-O O-O {[%emt 0:00:37]} 10. d5 {[%emt 0:22:34]} e5 {[%emt 0:02:06]} 11. Bd2 {[%emt 0:06:01]} Nc5 {[%emt 0:03:06]} 12. b4 {[%emt 0:01:13]} Nxd3 {[%emt 0:00:15]} 13. Qxd3 {[%emt 0:00:01]} Nh5 {[%emt 0:01:23]} 14. Qe2 {[%emt 0:20:11]} Nf4 {[%emt 0:06:19]} 15. Bxf4 {[%emt 0:00:02]} exf4 {[%emt 0:00:01]} 16. Rac1 {[%emt 0:00:12]} Qe7 {[%emt 0:03:34]} 17. Rfe1 {[%emt 0:00:36]} Rae8 {[%emt 0:03:39]} 18. Nb5 {[%emt 0:01:01]} f5 {[%emt 0:02:42]} 19. Nd2 {[%emt 0:08:09]} a6 {[%emt 0:04:03]} 20. Rc2 Bc3 21. Rxc3 {[%emt 0:00:13]} fxe4 {[%emt 0:00:22]} 22. Nxe4 {[%emt 0:00:32]} Qg7 {[%emt 0:06:35]} 23. Qd2 {[%emt 0:06:30]} Bc8 {[%emt 0:05:07]} 24. Ng5 {[%emt 0:04:17]} Qd4 {[%emt 0:06:40]} 25. Qc1 {[%emt 0:01:21]} Bd7 {[%emt 0:02:32]} 26. Nf3 {[%emt 0:00:31]} Qf6 {[%emt 0:00:39]} 27. h3 {[%emt 0:05:21]} Rxe1+ {[%emt 0:02:27]} 28. Qxe1 {[%emt 0:00:02]} Re8 {[%emt 0:00:00]} 29. Qd2 {[%emt 0:00:11]} Bf5 {[%emt 0:02:44]} 30. Rc1 {[%emt 0:01:02]} Re4 {[%emt 0:02:40]} 31. c5 bxc5 {[%emt 0:05:02]} 32. bxc5 {[%emt 0:03:47]} dxc5 {[%emt 0:05:10]} 33. Rxc5 {[%emt 0:00:17]} Qb6 {[%emt 0:00:08]} 34. Rc6 {[%emt 0:00:51]} Qb7 {[%emt 0:00:26]} 35. Qc3 {[%emt 0:02:16]} Re7 {[%emt 0:01:21]} 36. Kh2 {[%emt 0:01:06]} Be4 {[%emt 0:03:52]} 37. Qc4 {[%emt 0:02:54]} Kg7 {[%emt 0:03:43]} 38. Ng5 {[%emt 0:00:42]} Bf5 {[%emt 0:00:43]} 39. Qd4+ {[%emt 0:00:30]} Kg8 {[%emt 0:01:09]} 40. Qxf4 {[%emt 0:00:00]} Bd7 {[%emt 0:00:00]} 41. Qc4 {[%emt 0:03:30]} Kg7 {[%emt 0:02:28]} 42. Rxc7 {[%emt 0:00:22]} Qb6 {[%emt 0:02:02]} 43. Ne6+ {[%emt 0:02:58]} Kg8 {[%emt 0:01:37]} 44. Qc5 {[%emt 0:01:40]} Rxe6 {[%emt 0:02:14]} 45. dxe6 {[%emt 0:00:09]} Qxe6 {[%emt 0:00:24]} 46. Qc4 {[%emt 0:00:21]} Qxc4 {[%emt 0:00:14]} 47. Rxc4 {[%emt 0:00:02]} Bxb5 {[%emt 0:00:01]} 48. Rc7 {[%emt 0:00:02]} h6 {[%emt 0:00:02]} 49. f4 {[%emt 0:00:04]} Kh8 {[%emt 0:00:01]} 50. g4 {[%emt 0:00:21]} Kg8 {[%emt 0:01:36]} 51. h4 {[%emt 0:00:03]} Be2 {[%emt 0:00:10]} 52. Kg3 {[%emt 0:00:07]} Bb5 {[%emt 0:00:06]} 53. f5 {[%emt 0:00:16]} gxf5 54. gxf5 {[%emt 0:00:05]} Bd3 {[%emt 0:00:59]} 55. Kf4 {[%emt 0:00:08]} Kh8 {[%emt 0:00:41]} 56. f6 {[%emt 0:00:16]} Kg8 {[%emt 0:00:13]} 57. Ke5 {[%emt 0:00:08]} Bb1 {[%emt 0:00:18]} 58. a3 {[%emt 0:00:21]} Bd3 {[%emt 0:00:26]} 59. Kd6 {[%emt 0:00:07]} Kf8 {[%emt 0:00:23]} 60. Ke6 Kg8 {[%emt 0:01:19]} 61. Rc8+ {[%emt 0:00:27]} Kh7 {[%emt 0:02:01]} 62. f7 {[%emt 0:00:05]} Bf5+ {[%emt 0:00:35]} 63. Kxf5 {[%emt 0:00:07]} h5 {[%emt 0:00:07]} 64. f8=Q {[%emt 0:00:12]} a5 {[%emt 0:00:31]} 65. Rc7# {[%emt 0:00:03]} 1-0

[Event "IIFL Wealth  4th Mumbai Junior U-13"]
[Site "Mumbai"]
[Date "2018.12.31"]
[Round "2"]
[White "Rajbeer Ahmed"]
[Black "Tambe Shardul"]
[Result "1/2-1/2"]
[ECO "D12"]
[WhiteElo "1550"]
[BlackElo "1250"]
[Annotator "NA"]
[PlyCount "81"]
[EventDate "2018.12.30"]
[EventType "swiss"]
[EventCountry "IND"]
[SourceTitle "playchess.com"]
[Source "ChessBase"]
[SourceQuality "1"]
[TimeControl "40/5400+30:1800+30"]

1. d4 {[%emt 0:00:00]} d5 {[%emt 0:00:00]} 2. Nf3 {[%emt 0:00:00]} Nf6 {[%emt 0:00:00]} 3. e3 {[%emt 0:00:15]} Bf5 {[%emt 0:01:14]} 4. c4 {[%emt 0:00:24]} c6 {[%emt 0:00:39]} 5. Nc3 {[%emt 0:00:22]} e6 {[%emt 0:02:05]} 6. Bd3 {[%emt 0:04:19]} Bg4 {[%emt 0:02:44]} 7. O-O {[%emt 0:01:22]} Bd6 {[%emt 0:00:13]} 8. c5 {[%emt 0:06:07]} Bc7 {[%emt 0:00:45]} 9. b4 {[%emt 0:07:51]} Nbd7 {[%emt 0:15:51]} 10. Be2 {[%emt 0:10:53]} O-O {[%emt 0:04:28]} 11. Rb1 {[%emt 0:13:12]} e5 {[%emt 0:12:16]} 12. dxe5 {[%emt 0:04:43]} Bxe5 {[%emt 0:01:27]} 13. Bb2 {[%emt 0:08:08]} Bxc3 {[%emt 0:08:21]} 14. Bxc3 {[%emt 0:00:25]} Ne4 {[%emt 0:00:31]} 15. Bb2 {[%emt 0:00:38]} Qc7 {[%emt 0:04:23]} 16. Nd4 {[%emt 0:05:32]} Bxe2 {[%emt 0:02:40]} 17. Qxe2 {[%emt 0:00:12]} Ne5 {[%emt 0:01:37]} 18. f3 {[%emt 0:07:21]} Nf6 {[%emt 0:02:18]} 19. Nf5 {[%emt 0:04:30]} Rfe8 {[%emt 0:05:01]} 20. f4 {[%emt 0:01:27]} Ned7 {[%emt 0:10:42]} 21. g4 {[%emt 0:04:37]} g6 {[%emt 0:12:52]} 22. Nh6+ {[%emt 0:04:13]} Kf8 {[%emt 0:00:24]} 23. g5 {[%emt 0:10:02]} Ne4 {[%emt 0:02:12]} 24. Qd3 {[%emt 0:01:35]} f6 {[%emt 0:04:01]} 25. gxf6 {[%emt 0:00:42]} Ndxf6 {[%emt 0:00:21]} 26. Qe2 {[%emt 0:02:55]} Rad8 {[%emt 0:04:02]} 27. Be5 {[%emt 0:00:41]} Qd7 {[%emt 0:01:42]} 28. Rbe1 {[%emt 0:00:42]} Qh3 {[%emt 0:00:35]} 29. Qg2 {[%emt 0:00:36]} Qxh6 {[%emt 0:00:16]} 30. Bxf6 {[%emt 0:00:19]} Nxf6 {[%emt 0:00:01]} 31. Qg5 {[%emt 0:00:10]} Qg7 {[%emt 0:00:17]} 32. Kh1 Ne4 {[%emt 0:00:18]} 33. Qg4 {[%emt 0:00:32]} Nf6 {[%emt 0:00:32]} 34. Qg5 {[%emt 0:00:11]} Qe7 {[%emt 0:00:26]} 35. h3 Qe4+ {[%emt 0:00:20]} 36. Kh2 {[%emt 0:01:17]} Qf5 {[%emt 0:00:06]} 37. Re2 {[%emt 0:01:08]} Kg7 {[%emt 0:00:45]} 38. Qg2 {[%emt 0:00:47]} Ne4 {[%emt 0:00:28]} 39. Rg1 {[%emt 0:00:29]} Nf6 {[%emt 0:01:03]} 40. Qf1 {[%emt 0:00:00]} Re4 {[%emt 0:00:00]} 41. Rg5 {[%emt 0:01:12]} 1/2-1/2

[Event "IIFL Wealth  4th Mumbai Junior U-13"]
[Site "Mumbai"]
[Date "2018.12.31"]
[Round "2"]
[White "Nehete Arnav"]
[Black "Bulsara Yazaan"]
[Result "1-0"]
[ECO "D36"]
[WhiteElo "1544"]
[BlackElo "1244"]
[Annotator "NA"]
[PlyCount "139"]
[EventDate "2018.12.30"]
[EventType "swiss"]
[EventCountry "IND"]
[SourceTitle "playchess.com"]
[Source "ChessBase"]
[SourceQuality "1"]
[TimeControl "40/5400+30:1800+30"]

1. d4 Nf6 2. c4 {[%emt 0:00:00]} e6 {[%emt 0:06:19]} 3. Nc3 {[%emt 0:00:00]} d5 {[%emt 0:01:43]} 4. cxd5 {[%emt 0:01:22]} exd5 {[%emt 0:00:27]} 5. Bg5 {[%emt 0:00:07]} c6 {[%emt 0:01:13]} 6. Qc2 {[%emt 0:00:05]} Nbd7 {[%emt 0:01:02]} 7. e3 {[%emt 0:00:12]} Bd6 {[%emt 0:01:32]} 8. Bd3 {[%emt 0:00:04]} h6 {[%emt 0:02:48]} 9. Bh4 {[%emt 0:01:07]} O-O {[%emt 0:01:23]} 10. Nge2 {[%emt 0:02:44]} Re8 {[%emt 0:03:10]} 11. O-O {[%emt 0:03:31]} Nb6 {[%emt 0:12:15]} 12. Rfe1 {[%emt 0:07:44]} Bxh2+ {[%emt 0:04:15]} 13. Kh1 {[%emt 0:30:03]} Bd6 {[%emt 0:01:14]} 14. Rad1 {[%emt 0:04:06]} Be7 {[%emt 0:05:46]} 15. Bg3 {[%emt 0:05:57]} Ng4 {[%emt 0:04:28]} 16. e4 {[%emt 0:12:25]} Bh4 {[%emt 0:01:16]} 17. Kg1 {[%emt 0:00:11]} Bxg3 {[%emt 0:00:46]} 18. Nxg3 {[%emt 0:01:20]} Nf6 {[%emt 0:01:47]} 19. e5 {[%emt 0:03:30]} Nfd7 {[%emt 0:00:20]} 20. Nf5 {[%emt 0:00:22]} c5 {[%emt 0:00:56]} 21. Nd6 {[%emt 0:01:38]} Re7 {[%emt 0:02:11]} 22. dxc5 {[%emt 0:01:04]} Nxc5 {[%emt 0:00:05]} 23. Nxd5 {[%emt 0:00:52]} Nxd5 {[%emt 0:01:21]} 24. Qxc5 {[%emt 0:00:28]} Nb6 {[%emt 0:01:36]} 25. Nxf7 {[%emt 0:04:26]} Qc7 {[%emt 0:01:50]} 26. Qxc7 {[%emt 0:02:44]} Rxc7 {[%emt 0:00:02]} 27. Nd6 {[%emt 0:00:11]} Be6 {[%emt 0:00:49]} 28. b3 {[%emt 0:00:00]} Nd5 {[%emt 0:04:41]} 29. Bc4 {[%emt 0:02:46]} Nf4 {[%emt 0:00:21]} 30. Nb5 {[%emt 0:06:49]} Rc5 {[%emt 0:02:39]} 31. Nd6 {[%emt 0:03:35]} Bxc4 {[%emt 0:01:02]} 32. bxc4 {[%emt 0:00:31]} b6 {[%emt 0:02:22]} 33. e6 {[%emt 0:00:42]} Nh5 {[%emt 0:05:33]} 34. e7 {[%emt 0:00:13]} Nf6 {[%emt 0:00:01]} 35. e8=Q+ {[%emt 0:01:12]} Nxe8 {[%emt 0:00:11]} 36. Rxe8+ {[%emt 0:00:02]} Rxe8 {[%emt 0:00:07]} 37. Nxe8 {[%emt 0:00:01]} Rxc4 {[%emt 0:00:15]} 38. Rd2 {[%emt 0:03:47]} Rc1+ {[%emt 0:00:50]} 39. Kh2 {[%emt 0:00:03]} Kf7 {[%emt 0:01:06]} 40. Nd6+ {[%emt 0:00:00]} Ke6 {[%emt 0:00:00]} 41. Nb5 {[%emt 0:01:33]} a6 {[%emt 0:01:51]} 42. Nd4+ {[%emt 0:00:01]} Ke5 {[%emt 0:01:16]} 43. Nb3 {[%emt 0:02:59]} Rc3 {[%emt 0:00:55]} 44. g3 {[%emt 0:02:33]} a5 {[%emt 0:02:25]} 45. Kg2 {[%emt 0:01:51]} Rc4 {[%emt 0:00:45]} 46. Rd7 {[%emt 0:05:08]} a4 47. f4+ {[%emt 0:00:01]} Ke6 {[%emt 0:02:29]} 48. Rxg7 {[%emt 0:09:25]} axb3 {[%emt 0:00:02]} 49. axb3 {[%emt 0:00:48]} Rc2+ {[%emt 0:01:06]} 50. Kh3 {[%emt 0:00:20]} Kf6 {[%emt 0:02:13]} 51. Rb7 {[%emt 0:01:02]} Rc6 {[%emt 0:00:16]} 52. b4 {[%emt 0:00:11]} Ke6 {[%emt 0:00:49]} 53. b5 {[%emt 0:03:33]} Rd6 {[%emt 0:00:01]} 54. Rc7 {[%emt 0:00:01]} Kd5 {[%emt 0:01:41]} 55. Kh4 {[%emt 0:02:07]} Ke6 {[%emt 0:01:31]} 56. Kh5 {[%emt 0:01:48]} Rd5+ {[%emt 0:00:01]} 57. Kxh6 {[%emt 0:01:07]} Rxb5 {[%emt 0:00:01]} 58. g4 {[%emt 0:01:37]} Kd6 {[%emt 0:01:21]} 59. Rg7 {[%emt 0:00:43]} Rc5 {[%emt 0:01:45]} 60. Rg6+ {[%emt 0:01:11]} Kc7 {[%emt 0:00:01]} 61. f5 {[%emt 0:00:29]} b5 {[%emt 0:00:38]} 62. f6 {[%emt 0:01:06]} Kd8 {[%emt 0:00:15]} 63. Rg8+ {[%emt 0:00:32]} Kd7 {[%emt 0:00:14]} 64. f7 {[%emt 0:00:00]} Rc6+ {[%emt 0:01:00]} 65. Kg7 {[%emt 0:00:09]} Rc4 {[%emt 0:00:26]} 66. f8=Q {[%emt 0:00:50]} Rxg4+ {[%emt 0:00:06]} 67. Kh6 {[%emt 0:00:12]} Rh4+ {[%emt 0:00:12]} 68. Kg5 {[%emt 0:00:09]} Rh1 {[%emt 0:00:27]} 69. Rg7+ {[%emt 0:00:07]} Kc6 {[%emt 0:00:21]} 70. Qf3+ {[%emt 0:00:03] Kd5} 1-0

[Event "IIFL Wealth  4th Mumbai Junior U-13"]
[Site "Mumbai"]
[Date "2018.12.31"]
[Round "2"]
[White "Rushyendra Chowdary Kantipudi"]
[Black "Parab Ram Vishal"]
[Result "0-1"]
[ECO "C64"]
[WhiteElo "1527"]
[BlackElo "1242"]
[Annotator "NA RC"]
[PlyCount "100"]
[EventDate "2018.12.30"]
[EventType "swiss"]
[EventCountry "IND"]
[SourceTitle "playchess.com"]
[Source "ChessBase"]
[SourceQuality "1"]
[TimeControl "40/5400+30:1800+30"]

1. e4 {[%emt 0:00:00]} e5 {[%emt 0:00:04]} 2. Nf3 {[%emt 0:00:00]} Nc6 {[%emt 0:01:12]} 3. Bb5 {[%emt 0:01:52]} Bc5 {[%emt 0:01:13]} 4. Bxc6 {[%emt 0:00:39]} dxc6 {[%emt 0:01:06]} 5. d3 {[%emt 0:02:05]} Nf6 {[%emt 0:03:16]} 6. O-O {[%emt 0:01:02]} Qd6 {[%emt 0:04:15]} 7. Nbd2 {[%emt 0:02:47]} O-O {[%emt 0:01:03]} 8. Nc4 {[%emt 0:00:07]} Qe7 {[%emt 0:02:13]} 9. Ncxe5 {[%emt 0:01:10]} Be6 {[%emt 0:05:42]} 10. Qe2 {[%emt 0:04:41]} Rad8 {[%emt 0:02:32]} 11. Bg5 {[%emt 0:01:58]} h6 {[%emt 0:01:52]} 12. Bh4 {[%emt 0:04:32]} g5 {[%emt 0:04:45]} 13. Nxg5 {[%emt 0:15:43]} hxg5 {[%emt 0:01:23]} 14. Bxg5 {[%emt 0:00:04]} Bd4 {[%emt 0:01:00]} 15. Nxc6 {[%emt 0:02:16]} bxc6 {[%emt 0:02:10]} 16. c3 {[%emt 0:00:49]} Be5 {[%emt 0:05:32]} 17. d4 {[%emt 0:00:56]} Qd6 {[%emt 0:04:52]} 18. dxe5 {[%emt 0:07:38]} Qxe5 {[%emt 0:00:19]} 19. f4 {[%emt 0:04:49]} Qc5+ {[%emt 0:01:49]} 20. Kh1 {[%emt 0:00:05]} Bc4 {[%emt 0:00:47]} 21. Qf3 {[%emt 0:00:07]} Rd3 {[%emt 0:01:15]} 22. Qe2 {[%emt 0:02:55]} Re3 {[%emt 0:01:26]} 23. Qd1 {[%emt 0:04:09]} Bxf1 {[%emt 0:00:26]} 24. Bxf6 {[%emt 0:00:44]} Be2 {[%emt 0:01:12]} 25. Qe1 {[%emt 0:06:27]} Qh5 {[%emt 0:02:15]} 26. e5 {[%emt 0:03:15]} Qg4 {[%emt 0:03:13]} 27. Qf2 {[%emt 0:00:09]} Re4 {[%emt 0:01:09]} 28. Bg5 {[%emt 0:05:10]} Bd1 {[%emt 0:01:58]} 29. h3 {[%emt 0:02:20]} Qe2 {[%emt 0:01:23]} 30. Qc5 {[%emt 0:03:23]} Qf1+ {[%emt 0:00:40]} 31. Kh2 {[%emt 0:00:23]} Re1 {[%emt 0:01:45]} 32. Rxd1 {[%emt 0:03:50]} Rxd1 {[%emt 0:00:27]} 33. Bh6 {[%emt 0:01:09]} Qh1+ {[%emt 0:00:26]} 34. Kg3 {[%emt 0:00:08]} Rd3+ {[%emt 0:00:05]} 35. Kh4 {[%emt 0:00:13]} Qe1+ {[%emt 0:00:13]} 36. Kh5 {[%emt 0:00:48]} Qe2+ {[%emt 0:01:24]} 37. Kh4 {[%emt 0:01:07]} Re8 {[%emt 0:02:09]} 38. Qxc6 {[%emt 0:01:05]} Re6 {[%emt 0:00:38]} 39. Qa8+ {[%emt 0:00:06]} Kh7 {[%emt 0:00:12]} 40. Bg5 {[%emt 0:00:00]} Qf2+ {[%emt 0:00:00]} 41. Kh5 {[%emt 0:00:23]} Rg3 {[%emt 0:05:05]} 42. Qe4+ {[%emt 0:06:10]} Rg6 {[%emt 0:01:00]} 43. e6 {[%emt 0:00:56]} f5 {[%emt 0:03:07]} 44. e7 {[%emt 0:07:07]} fxe4 {[%emt 0:00:54]} 45. e8=Q {[%emt 0:00:07]} R3xg5+ {[%emt 0:02:54]} 46. fxg5 {[%emt 0:00:11]} Qf5 {[%emt 0:00:33]} 47. Qe7+ {[%emt 0:02:20]} Rg7 {[%emt 0:00:00]} 48. Qd8 {[%emt 0:01:49]} Rxg5+ {[%emt 0:00:00]} 49. Qxg5 {[%emt 0:00:49]} Qxg5+ {[%emt 0:00:00]} 50. Kxg5 {[%emt 0:00:06]} e3 {[%emt 0:00:00]} 0-1

[Event "IIFL Wealth  4th Mumbai Junior U-13"]
[Site "Mumbai"]
[Date "2018.12.31"]
[Round "2"]
[White "Ratnapriya K"]
[Black "Gosrani, Naiya"]
[Result "1-0"]
[ECO "C88"]
[WhiteElo "1516"]
[BlackElo "1235"]
[Annotator "NA"]
[PlyCount "133"]
[EventDate "2018.12.30"]
[EventType "swiss"]
[EventCountry "IND"]
[SourceTitle "playchess.com"]
[Source "ChessBase"]
[SourceQuality "1"]
[TimeControl "40/5400+30:1800+30"]

1. e4 {[%emt 0:00:00]} e5 {[%emt 0:00:00]} 2. Nf3 {[%emt 0:00:00]} Nc6 {[%emt 0:00:00]} 3. Bb5 {[%emt 0:00:25]} a6 {[%emt 0:00:03]} 4. Ba4 {[%emt 0:00:21]} Nf6 {[%emt 0:00:34]} 5. O-O {[%emt 0:00:14]} Be7 {[%emt 0:00:49]} 6. Re1 {[%emt 0:00:14]} b5 {[%emt 0:00:23]} 7. Bb3 {[%emt 0:00:17]} O-O {[%emt 0:00:26]} 8. a4 {[%emt 0:00:39]} Bb7 {[%emt 0:02:36]} 9. Nc3 {[%emt 0:00:15]} Bc5 {[%emt 0:06:10]} 10. axb5 {[%emt 0:03:31]} axb5 {[%emt 0:01:47]} 11. Rxa8 {[%emt 0:00:37]} Qxa8 {[%emt 0:08:31]} 12. Nxb5 {[%emt 0:01:50]} Bb6 {[%emt 0:02:39]} 13. c3 {[%emt 0:02:51]} d6 {[%emt 0:04:45]} 14. Na3 {[%emt 0:03:03]} Na5 {[%emt 0:01:36]} 15. Bc2 {[%emt 0:00:33]} Bxe4 {[%emt 0:04:05]} 16. Bxe4 {[%emt 0:01:02]} Nxe4 {[%emt 0:00:13]} 17. d4 {[%emt 0:00:44]} exd4 {[%emt 0:04:22]} 18. cxd4 {[%emt 0:01:10]} d5 {[%emt 0:06:06]} 19. Ne5 {[%emt 0:02:34]} Qc8 {[%emt 0:09:29]} 20. b4 {[%emt 0:08:13]} Nb7 {[%emt 0:06:15]} 21. f3 {[%emt 0:02:05]} f6 {[%emt 0:03:04]} 22. Nc6 {[%emt 0:00:57]} Qd7 {[%emt 0:05:53]} 23. b5 {[%emt 0:02:16]} Ned6 {[%emt 0:06:07]} 24. Re7 {[%emt 0:01:49]} Qc8 {[%emt 0:01:58]} 25. Qb3 {[%emt 0:04:41]} Qf5 {[%emt 0:05:13]} 26. Rxc7 {[%emt 0:02:39]} Kh8 {[%emt 0:03:35]} 27. Re7 {[%emt 0:02:43]} Na5 {[%emt 0:01:06]} 28. Nxa5 {[%emt 0:01:46]} Bxa5 {[%emt 0:00:09]} 29. b6 {[%emt 0:02:59]} Nc8 {[%emt 0:02:13]} 30. g4 {[%emt 0:11:38]} Qg6 {[%emt 0:01:11]} 31. b7 {[%emt 0:10:18]} Nxe7 {[%emt 0:00:18]} 32. b8=Q {[%emt 0:00:20]} Rxb8 {[%emt 0:00:05]} 33. Qxb8+ {[%emt 0:00:20]} Ng8 {[%emt 0:00:03]} 34. Qb5 {[%emt 0:00:26]} Bc3 {[%emt 0:01:22]} 35. Be3 {[%emt 0:00:35]} f5 {[%emt 0:01:51]} 36. h3 {[%emt 0:07:08]} fxg4 {[%emt 0:00:05]} 37. hxg4 {[%emt 0:00:36]} Qf6 {[%emt 0:01:05]} 38. Qxd5 {[%emt 0:01:58]} Qa6 {[%emt 0:01:30]} 39. Nb5 {[%emt 0:05:20]} Qa1+ {[%emt 0:00:34]} 40. Kg2 {[%emt 0:00:00]} Qb2+ {[%emt 0:00:00]} 41. Kh3 {[%emt 0:02:22]} Bb4 {[%emt 0:05:39]} 42. Nd6 {[%emt 0:07:11]} Bxd6 {[%emt 0:00:19]} 43. Qxd6 {[%emt 0:00:19]} Qe2 {[%emt 0:00:43]} 44. Qf4 {[%emt 0:01:42]} Qf1+ {[%emt 0:01:27]} 45. Kg3 {[%emt 0:00:20]} Qe1+ {[%emt 0:00:59]} 46. Bf2 {[%emt 0:00:20]} Qe6 {[%emt 0:00:30]} 47. Qe5 {[%emt 0:00:37]} Qxe5+ {[%emt 0:00:50]} 48. dxe5 {[%emt 0:00:14]} Ne7 {[%emt 0:00:36]} 49. Bc5 {[%emt 0:00:37]} Nd5 {[%emt 0:00:49]} 50. f4 {[%emt 0:04:04]} Kg8 {[%emt 0:00:50]} 51. e6 {[%emt 0:00:56]} Nc7 {[%emt 0:01:54]} 52. f5 {[%emt 0:00:11]} Ne8 {[%emt 0:00:49]} 53. Kf4 {[%emt 0:03:17]} g6 {[%emt 0:02:45]} 54. Ke5 {[%emt 0:00:11]} Kg7 {[%emt 0:00:32]} 55. Be7 {[%emt 0:00:10]} gxf5 {[%emt 0:01:40]} 56. gxf5 {[%emt 0:00:14]} h5 {[%emt 0:00:22]} 57. f6+ {[%emt 0:00:11]} Nxf6 {[%emt 0:00:12]} 58. Bxf6+ {[%emt 0:00:10]} Kf8 {[%emt 0:00:11]} 59. Kd6 {[%emt 0:00:23]} Ke8 {[%emt 0:00:25]} 60. Bh4 {[%emt 0:00:19]} Kf8 {[%emt 0:00:54]} 61. Kd7 {[%emt 0:00:15]} Kg7 {[%emt 0:00:10]} 62. e7 {[%emt 0:00:57]} Kg6 {[%emt 0:00:08]} 63. e8=Q+ {[%emt 0:00:12]} Kf5 {[%emt 0:00:09]} 64. Qe3 {[%emt 0:00:39]} Kg4 {[%emt 0:00:12]} 65. Qg3+ {[%emt 0:00:17]} Kf5 {[%emt 0:00:08]} 66. Qf3+ {[%emt 0:00:55]} Ke5 {[%emt 0:00:03]} 67. Bf6# {[%emt 0:00:22]} 1-0

[Event "IIFL Wealth  4th Mumbai Junior U-13"]
[Site "Mumbai"]
[Date "2018.12.31"]
[Round "2"]
[White "Marium Fatima"]
[Black "Keerthana B"]
[Result "1-0"]
[ECO "D02"]
[WhiteElo "1494"]
[BlackElo "1232"]
[Annotator "NA RC"]
[PlyCount "77"]
[EventDate "2018.12.30"]
[EventType "swiss"]
[EventCountry "IND"]
[SourceTitle "playchess.com"]
[Source "ChessBase"]
[SourceQuality "1"]
[TimeControl "40/5400+30:1800+30"]

1. d4 {[%emt 0:00:00]} d5 {[%emt 0:00:00]} 2. Nf3 {[%emt 0:00:00]} Nf6 {[%emt 0:00:00]} 3. g3 {[%emt 0:00:00]} e6 {[%emt 0:00:13]} 4. Bg2 {[%emt 0:00:00]} Nbd7 {[%emt 0:00:25]} 5. O-O {[%emt 0:00:05]} Be7 {[%emt 0:00:30]} 6. b3 {[%emt 0:00:07]} b6 {[%emt 0:01:02]} 7. Bb2 {[%emt 0:00:06]} Bb7 {[%emt 0:00:26]} 8. Nbd2 {[%emt 0:00:09]} O-O {[%emt 0:01:00]} 9. c4 {[%emt 0:00:05]} c5 {[%emt 0:06:01]} 10. Rc1 {[%emt 0:00:11]} Rc8 {[%emt 0:03:10]} 11. Ne5 {[%emt 0:08:02]} cxd4 {[%emt 0:08:48]} 12. Bxd4 {[%emt 0:00:21]} Nxe5 {[%emt 0:03:00]} 13. Bxe5 {[%emt 0:00:07]} Qd7 {[%emt 0:01:32]} 14. Bxf6 {[%emt 0:09:19]} Bxf6 {[%emt 0:00:20]} 15. Ne4 {[%emt 0:02:15]} Be7 {[%emt 0:03:21]} 16. Nc3 {[%emt 0:02:16]} Rfd8 {[%emt 0:03:56]} 17. cxd5 {[%emt 0:01:21]} exd5 {[%emt 0:00:41]} 18. Nxd5 {[%emt 0:07:05]} Rxc1 {[%emt 0:02:36]} 19. Nxe7+ {[%emt 0:00:11]} Qxe7 {[%emt 0:00:18]} 20. Qxc1 {[%emt 0:00:12]} Bxg2 {[%emt 0:00:36]} 21. Kxg2 {[%emt 0:00:10]} Qxe2 {[%emt 0:02:49]} 22. Qc7 {[%emt 0:00:28]} Re8 {[%emt 0:00:53]} 23. Qxa7 {[%emt 0:00:58]} h6 {[%emt 0:01:17]} 24. Qxb6 {[%emt 0:01:27]} Qxa2 {[%emt 0:01:00]} 25. Qb7 {[%emt 0:01:45]} Re2 {[%emt 0:01:39]} 26. Qc8+ {[%emt 0:01:41]} Kh7 {[%emt 0:01:27]} 27. Qf5+ {[%emt 0:00:06]} Kg8 {[%emt 0:00:07]} 28. Rc1 {[%emt 0:01:36]} g6 {[%emt 0:03:34]} 29. Rc8+ {[%emt 0:00:26]} Kg7 {[%emt 0:00:09]} 30. Qf3 {[%emt 0:00:27]} Re6 {[%emt 0:02:44]} 31. Qc3+ {[%emt 0:02:20]} Rf6 {[%emt 0:00:33]} 32. Qc5 {[%emt 0:00:22]} g5 {[%emt 0:01:30]} 33. g4 {[%emt 0:03:27]} Rf4 {[%emt 0:03:19]} 34. Qf8+ {[%emt 0:00:11]} Kg6 {[%emt 0:00:19]} 35. Qg8+ {[%emt 0:00:21]} Kf6 {[%emt 0:00:35]} 36. Qh8+ {[%emt 0:00:07]} Ke7 {[%emt 0:01:19]} 37. Qd8+ {[%emt 0:00:14]} Ke6 {[%emt 0:00:28]} 38. Rc6+ {[%emt 0:00:09]} Ke5 {[%emt 0:00:31]} 39. Qd6+ {[%emt 0:00:06]} 1-0